fUST/lending_fUST_20250210
["ID","MTS","AMOUNT","RATE_DAILY","PERIOD"]
[352570585,1739173842271,-500.0,0.00011506,2]
[352570586,1739173842281,-889.57,0.00011506,2]
[352570587,1739173842290,-500.0,0.00011506,2]
[352570588,1739173842300,-500.0,0.00011506,2]
[352570589,1739173842309,-500.0,0.00011506,2]
[352570590,1739173842319,-24674.75,0.00011506,2]
[352570591,1739173842328,-1381.02,0.00011506,2]
[352570592,1739173842338,-3775.41,0.00011506,2]
[352570593,1739173842347,-1106.43,0.00011506,2]
[352570594,1739173842356,-615.18,0.00011506,2]
[352570595,1739173842365,-500.0,0.00011506,2]
[352570596,1739173842381,-500.0,0.00011506,2]
[352570597,1739173842391,-1821.24,0.00011506,2]
[352570598,1739173842404,-586.55,0.00011506,2]
[352570599,1739173842413,-612.13,0.00011506,2]
[352570600,1739173842422,-500.0,0.00011506,2]
[352570602,1739173842431,-5292.78,0.00011506,2]
[352570604,1739173842441,-500.0,0.00011506,2]
[352570606,1739173842451,-500.0,0.00011506,2]
[352570608,1739173842460,-1628.02,0.00011506,2]
[352570609,1739173842469,-500.0,0.00011506,2]
[352570610,1739173842479,-500.0,0.00011506,2]
[352570611,1739173842489,-500.0,0.00011506,2]
[352570613,1739173842498,-837.58,0.00011506,2]
[352570614,1739173842507,-762.41,0.00011506,2]
[352570615,1739173842516,-1904.32,0.00011506,2]
[352570616,1739173842525,-849.42,0.00011506,2]
[352570617,1739173842534,-925.35,0.00011506,2]
[352570618,1739173842543,-878.8,0.00011506,2]
[352570619,1739173842552,-1541.79,0.00011506,2]
[352570621,1739173842564,-500.0,0.00011506,2]
[352570622,1739173842573,-500.0,0.00011506,2]
[352570623,1739173842583,-700.89,0.00011506,2]
[352570624,1739173842592,-500.0,0.00011506,2]
[352570625,1739173842601,-500.0,0.00011506,2]
[352570626,1739173842610,-500.0,0.00011506,2]
[352570627,1739173842619,-587.98,0.00011506,2]
[352570628,1739173842628,-500.0,0.00011506,2]
[352570629,1739173842637,-1948.67,0.00011506,2]
[352570630,1739173842646,-886.37,0.00011506,2]
[352570631,1739173842655,-500.0,0.00011506,2]
[352570633,1739173842664,-500.0,0.00011506,2]
[352570635,1739173842674,-11555.29,0.00011506,2]
[352570637,1739173842683,-3567.19,0.00011506,2]
[352570639,1739173842693,-1981.93,0.00011506,2]
[352570640,1739173842702,-1014.01,0.00011506,2]
[352570641,1739173842711,-500.0,0.00011506,2]
[352570642,1739173842721,-500.0,0.00011506,2]
[352570643,1739173842730,-634.90413359,0.00011643,2]
[352570644,1739173842739,-500.0,0.00011643,2]
[352570645,1739173842748,-500.0,0.00011643,2]
[352570646,1739173842757,-500.0,0.00011643,2]
[352570647,1739173842766,-384.80427123,0.00011643,2]
[352570648,1739173842775,-500.0,0.00011643,2]
[352570649,1739173842784,-500.0,0.00011643,2]
[352570650,1739173842796,-500.0,0.00011643,2]
[352570651,1739173842805,-500.0,0.00011643,2]
[352570652,1739173842815,-566.83,0.00011643,2]
[352570653,1739173842825,-500.0,0.00011643,2]
[352570654,1739173842835,-500.0,0.00011643,2]
[352570655,1739173842844,-598.1,0.00011643,2]
[352570656,1739173842853,-500.0,0.00011643,2]
[352570657,1739173842862,-500.0,0.00011643,2]
[352570658,1739173842871,-500.0,0.00011643,2]
[352570659,1739173842881,-636.99,0.00011643,2]
[352570660,1739173842890,-753.01,0.00011643,2]
[352570661,1739173842899,-500.0,0.00011643,2]
[352570662,1739173842909,-500.0,0.00011643,2]
[352570663,1739173842918,-500.0,0.00011643,2]
[352570664,1739173842927,-500.0,0.00011643,2]
[352570665,1739173842936,-500.0,0.00011643,2]
[352570666,1739173842946,-500.0,0.00011643,2]
[352570667,1739173842955,-500.0,0.00011643,2]
[352570668,1739173842964,-500.0,0.00011643,2]
[352570669,1739173842973,-582.61,0.00011643,2]
[352570670,1739173842983,-500.0,0.00011643,2]
[352570671,1739173842992,-500.0,0.00011643,2]
[352570672,1739173843001,-500.0,0.00011643,2]
[352570673,1739173843010,-500.0,0.00011643,2]
[352570674,1739173843020,-1011.4,0.00011643,2]
[352570675,1739173843029,-500.0,0.00011643,2]
[352570676,1739173843038,-500.0,0.00011643,2]
[352570677,1739173843048,-500.0,0.00011643,2]
[352570678,1739173843057,-500.0,0.00011643,2]
[352570679,1739173843066,-500.0,0.00011643,2]
[352570680,1739173843075,-508.25010748,0.00011643,2]
[352570681,1739173843085,-500.0,0.00011643,2]
[352570682,1739173843095,-2327.36,0.00011643,2]
[352570683,1739173843104,-2167.03,0.00011643,2]
[352570684,1739173843113,-500.0,0.00011643,2]
[352570685,1739173843123,-1786.78,0.00011643,2]
[352570686,1739173843131,-500.0,0.00011643,2]
[352570687,1739173843141,-1046.24,0.00011643,2]
[352570688,1739173843150,-500.0,0.00011643,2]
[352570689,1739173843160,-500.0,0.00011643,2]
[352570690,1739173843169,-737.05,0.00011643,2]
[352570691,1739173843178,-500.0,0.00011643,2]
[352570692,1739173843187,-699.77,0.00011643,2]
[352570693,1739173843197,-500.0,0.00011643,2]
[352570694,1739173843206,-889.57,0.00011643,2]
[352570696,1739173843215,-500.0,0.00011643,2]
[352570698,1739173843225,-24674.75,0.00011643,2]
[352570699,1739173843234,-1381.02,0.00011643,2]
[352570700,1739173843243,-3775.41,0.00011643,2]
[352570701,1739173843253,-1106.43,0.00011643,2]
[352570702,1739173843262,-615.18,0.00011643,2]
[352570703,1739173843271,-500.0,0.00011643,2]
[352570704,1739173843280,-1821.24,0.00011643,2]
[352570705,1739173843290,-586.55,0.00011643,2]
[352570706,1739173843299,-612.13,0.00011643,2]
[352570707,1739173843309,-500.0,0.00011643,2]
[352570708,1739173843319,-5292.78,0.00011643,2]
[352570709,1739173843328,-500.0,0.00011643,2]
[352570710,1739173843338,-1628.02,0.00011643,2]
[352570711,1739173843347,-500.0,0.00011643,2]
[352570712,1739173843356,-500.0,0.00011643,2]
[352570713,1739173843365,-500.0,0.00011643,2]
[352570714,1739173843375,-837.58,0.00011643,2]
[352570715,1739173843384,-762.41,0.00011643,2]
[352570716,1739173843393,-1904.32,0.00011643,2]
[352570717,1739173843406,-849.42,0.00011643,2]
[352570718,1739173843415,-925.35,0.00011643,2]
[352570719,1739173843425,-878.8,0.00011643,2]
[352570720,1739173843434,-1541.79,0.00011643,2]
[352570721,1739173843443,-500.0,0.00011643,2]
[352570722,1739173843452,-500.0,0.00011643,2]
[352570723,1739173843462,-700.89,0.00011643,2]
[352570724,1739173843471,-500.0,0.00011643,2]
[352570725,1739173843481,-500.0,0.00011643,2]
[352570726,1739173843491,-500.0,0.00011643,2]
[352570727,1739173843501,-587.98,0.00011643,2]
[352570728,1739173843510,-500.0,0.00011643,2]
[352570729,1739173843519,-1948.67,0.00011643,2]
[352570730,1739173843528,-886.37,0.00011643,2]
[352570731,1739173843537,-500.0,0.00011643,2]
[352570732,1739173843547,-500.0,0.00011643,2]
[352570733,1739173843556,-11555.29,0.00011643,2]
[352570734,1739173843566,-3567.19,0.00011643,2]
[352570735,1739173843575,-1981.93,0.00011643,2]
[352570736,1739173843584,-1014.01,0.00011643,2]
[352570737,1739173843593,-500.0,0.00011643,2]
[352570738,1739173843698,-500.0,0.00011643,2]
[352570739,1739173843708,-1780.52740985,0.0001165,2]
[352570740,1739173843718,-500.0,0.0001178,2]
[352570741,1739173843728,-500.0,0.0001178,2]
[352570742,1739173843738,-500.0,0.0001178,2]
[352570743,1739173843748,-230.98636797,0.0001178,2]
[352570744,1739173843757,-500.0,0.0001178,2]
[352570745,1739173843766,-500.0,0.0001178,2]
[352570746,1739173843776,-566.83,0.0001178,2]
[352570747,1739173843785,-500.0,0.0001178,2]
[352570748,1739173843795,-500.0,0.0001178,2]
[352570749,1739173843805,-598.1,0.0001178,2]
[352570750,1739173843815,-500.0,0.0001178,2]
[352570751,1739173843825,-192.54,0.0001178,2]
[352570752,1739173843835,-500.0,0.0001178,2]
[352570753,1739173843844,-636.99,0.0001178,2]
[352570754,1739173843853,-753.01,0.0001178,2]
[352570755,1739173843863,-500.0,0.0001178,2]
[352570756,1739173843873,-500.0,0.0001178,2]
[352570757,1739173843882,-500.0,0.0001178,2]
[352570758,1739173843892,-500.0,0.0001178,2]
[352570759,1739173843901,-500.0,0.0001178,2]
[352570760,1739173843911,-500.0,0.0001178,2]
[352570761,1739173843920,-500.0,0.0001178,2]
[352570762,1739173843929,-500.0,0.0001178,2]
[352570763,1739173843939,-582.61,0.0001178,2]
[352570764,1739173843948,-500.0,0.0001178,2]
[352570765,1739173843957,-552.64114857,0.0001178,2]
[352570766,1739173843967,-500.0,0.0001178,2]
[352570767,1739173843976,-624.31537494,0.0001178,2]
[352570768,1739173843986,-1011.4,0.0001178,2]
[352570769,1739173843995,-500.0,0.0001178,2]
[352570770,1739173844005,-500.0,0.0001178,2]
[352570771,1739173844014,-500.0,0.0001178,2]
[352570772,1739173844024,-500.0,0.0001178,2]
[352570773,1739173844033,-500.0,0.0001178,2]
[352570774,1739173844043,-500.0,0.0001178,2]
[352570775,1739173844052,-2327.36,0.0001178,2]
[352570776,1739173844062,-2167.03,0.0001178,2]
[352570777,1739173844071,-500.0,0.0001178,2]
[352570778,1739173844081,-1786.78,0.0001178,2]
[352570779,1739173844091,-500.0,0.0001178,2]
[352570780,1739173844102,-1046.24,0.0001178,2]
[352570781,1739173844112,-500.0,0.0001178,2]
[352570782,1739173844122,-737.05,0.0001178,2]
[352570783,1739173844131,-500.0,0.0001178,2]
[352570784,1739173844141,-699.77,0.0001178,2]
[352570785,1739173844151,-500.0,0.0001178,2]
[352570786,1739173844161,-889.57,0.0001178,2]
[352570787,1739173844170,-500.0,0.0001178,2]
[352570788,1739173844181,-24674.75,0.0001178,2]
[352570789,1739173844191,-1381.02,0.0001178,2]
[352570790,1739173844201,-3775.41,0.0001178,2]
[352570791,1739173844211,-1106.43,0.0001178,2]
[352570792,1739173844220,-615.18,0.0001178,2]
[352570793,1739173844230,-500.0,0.0001178,2]
[352570794,1739173844240,-1821.24,0.0001178,2]
[352570795,1739173844250,-586.55,0.0001178,2]
[352570796,1739173844260,-612.13,0.0001178,2]
[352570797,1739173844269,-500.0,0.0001178,2]
[352570798,1739173844279,-5292.78,0.0001178,2]
[352570799,1739173844289,-254.66862441,0.0001178,2]
[352570800,1739173844300,-1628.02,0.0001178,2]
[352570801,1739173844310,-500.0,0.0001178,2]
[352570802,1739173844320,-500.0,0.0001178,2]
[352570803,1739173844330,-500.0,0.0001178,2]
[352570804,1739173844340,-837.58,0.0001178,2]
[352570805,1739173844349,-762.41,0.0001178,2]
[352570806,1739173844359,-1904.32,0.0001178,2]
[352570807,1739173844369,-849.42,0.0001178,2]
[352570808,1739173844379,-925.35,0.0001178,2]
[352570809,1739173844388,-878.8,0.0001178,2]
[352570810,1739173844399,-1541.79,0.0001178,2]
[352570811,1739173844410,-500.0,0.0001178,2]
[352570812,1739173844420,-500.0,0.0001178,2]
[352570813,1739173844429,-700.89,0.0001178,2]
[352570814,1739173844439,-500.0,0.0001178,2]
[352570815,1739173844448,-500.0,0.0001178,2]
[352570816,1739173844459,-500.0,0.0001178,2]
[352570817,1739173844468,-587.98,0.0001178,2]
[352570818,1739173844479,-500.0,0.0001178,2]
[352570819,1739173844490,-1948.67,0.0001178,2]
[352570820,1739173844499,-886.37,0.0001178,2]
[352570821,1739173844510,-500.0,0.0001178,2]
[352570822,1739173844519,-500.0,0.0001178,2]
[352570823,1739173844530,-11555.29,0.0001178,2]
[352570824,1739173844540,-3567.19,0.0001178,2]
[352570825,1739173844549,-1981.93,0.0001178,2]
[352570826,1739173844559,-1014.01,0.0001178,2]
[352570827,1739173844570,-500.0,0.0001178,2]
[352570828,1739173844579,-500.0,0.0001178,2]
[352570829,1739173844589,-158.26009058,0.00011817,2]
[352570830,1739173844599,-500.0,0.00011917,2]
[352570831,1739173844609,-500.0,0.00011917,2]
[352570832,1739173844619,-500.0,0.00011917,2]
[352570833,1739173844628,-500.0,0.00011917,2]
[352570834,1739173844639,-500.0,0.00011917,2]
[352570835,1739173844648,-566.83,0.00011917,2]
[352570836,1739173844658,-500.0,0.00011917,2]
[352570837,1739173844667,-500.0,0.00011917,2]
[352570838,1739173844677,-598.1,0.00011917,2]
[352570839,1739173844687,-500.0,0.00011917,2]
[352570840,1739173844697,-500.0,0.00011917,2]
[352570841,1739173844707,-636.99,0.00011917,2]
[352570842,1739173844716,-753.01,0.00011917,2]
[352570843,1739173844726,-500.0,0.00011917,2]
[352570844,1739173844736,-500.0,0.00011917,2]
[352570845,1739173844747,-500.0,0.00011917,2]
[352570846,1739173844757,-500.0,0.00011917,2]
[352570847,1739173844767,-500.0,0.00011917,2]
[352570848,1739173844776,-500.0,0.00011917,2]
[352570849,1739173844787,-232.37,0.00011917,2]
[352570850,1739173844797,-500.0,0.00011917,2]
[352570851,1739173844807,-582.61,0.00011917,2]
[352570852,1739173844818,-500.0,0.00011917,2]
[352570853,1739173844828,-500.0,0.00011917,2]
[352570854,1739173844839,-1011.4,0.00011917,2]
[352570855,1739173844848,-500.0,0.00011917,2]
[352570856,1739173844859,-500.0,0.00011917,2]
[352570857,1739173844868,-500.0,0.00011917,2]
[352570858,1739173844877,-500.0,0.00011917,2]
[352570859,1739173844887,-500.0,0.00011917,2]
[352570860,1739173844896,-500.0,0.00011917,2]
[352570861,1739173844905,-2327.36,0.00011917,2]
[352570862,1739173844915,-2167.03,0.00011917,2]
[352570863,1739173844926,-500.0,0.00011917,2]
[352570864,1739173844935,-1786.78,0.00011917,2]
[352570865,1739173844945,-500.0,0.00011917,2]
[352570866,1739173844956,-1046.24,0.00011917,2]
[352570867,1739173844965,-500.0,0.00011917,2]
[352570868,1739173844975,-737.05,0.00011917,2]
[352570869,1739173844985,-500.0,0.00011917,2]
[352570870,1739173844994,-699.77,0.00011917,2]
[352570871,1739173845004,-500.0,0.00011917,2]
[352570872,1739173845013,-889.57,0.00011917,2]
[352570873,1739173845023,-500.0,0.00011917,2]
[352570874,1739173845034,-24674.75,0.00011917,2]
[352570875,1739173845044,-1381.02,0.00011917,2]
[352570876,1739173845053,-3775.41,0.00011917,2]
[352570877,1739173845066,-1106.43,0.00011917,2]
[352570878,1739173845077,-615.18,0.00011917,2]
[352570879,1739173845088,-500.0,0.00011917,2]
[352570880,1739173845099,-1821.24,0.00011917,2]
[352570881,1739173845110,-586.55,0.00011917,2]
[352570882,1739173845120,-612.13,0.00011917,2]
[352570883,1739173845130,-500.0,0.00011917,2]
[352570884,1739173845141,-5292.78,0.00011917,2]
[352570885,1739173845152,-1628.02,0.00011917,2]
[352570886,1739173845161,-500.0,0.00011917,2]
[352570887,1739173845172,-500.0,0.00011917,2]
[352570888,1739173845183,-500.0,0.00011917,2]
[352570889,1739173845193,-837.58,0.00011917,2]
[352570890,1739173845203,-762.41,0.00011917,2]
[352570891,1739173845214,-1904.32,0.00011917,2]
[352570892,1739173845225,-849.42,0.00011917,2]
[352570893,1739173845235,-925.35,0.00011917,2]
[352570894,1739173845246,-878.8,0.00011917,2]
[352570895,1739173845256,-1541.79,0.00011917,2]
[352570896,1739173845265,-500.0,0.00011917,2]
[352570897,1739173845275,-500.0,0.00011917,2]
[352570898,1739173845286,-700.89,0.00011917,2]
[352570899,1739173845297,-500.0,0.00011917,2]
[352570900,1739173845306,-500.0,0.00011917,2]
[352570901,1739173845317,-409.82,0.00011917,2]
[352570902,1739173845326,-587.98,0.00011917,2]
[352570903,1739173845336,-500.0,0.00011917,2]
[352570904,1739173845345,-1948.67,0.00011917,2]
[352570905,1739173845355,-886.37,0.00011917,2]
[352570906,1739173845364,-500.0,0.00011917,2]
[352570907,1739173845374,-500.0,0.00011917,2]
[352570908,1739173845383,-11555.29,0.00011917,2]
[352570909,1739173845394,-3567.19,0.00011917,2]
[352570910,1739173845407,-1981.93,0.00011917,2]
[352570911,1739173845418,-1014.01,0.00011917,2]
[352570912,1739173845428,-500.0,0.00011917,2]
[352570913,1739173845438,-500.0,0.00012015,2]
[352570914,1739173845448,-500.40279845,0.00012047,2]
[352570915,1739173845458,-500.0,0.00012054,2]
[352570916,1739173845467,-500.0,0.00012054,2]
[352570917,1739173845479,-500.0,0.00012054,2]
[352570918,1739173845489,-500.0,0.00012054,2]
[352570919,1739173845498,-500.0,0.00012054,2]
[352570920,1739173845508,-566.83,0.00012054,2]
[352570921,1739173845517,-500.0,0.00012054,2]
[352570922,1739173845527,-500.0,0.00012054,2]
[352570923,1739173845536,-598.1,0.00012054,2]
[352570924,1739173845546,-500.0,0.00012054,2]
[352570925,1739173845555,-500.0,0.00012054,2]
[352570926,1739173845565,-636.99,0.00012054,2]
[352570927,1739173845575,-753.01,0.00012054,2]
[352570928,1739173845584,-500.0,0.00012054,2]
[352570930,1739173845594,-500.0,0.00012054,2]
[352570931,1739173845603,-500.0,0.00012054,2]
[352570932,1739173845613,-500.0,0.00012054,2]
[352570933,1739173845622,-500.0,0.00012054,2]
[352570934,1739173845632,-500.0,0.00012054,2]
[352570935,1739173845641,-500.0,0.00012054,2]
[352570936,1739173845650,-582.61,0.00012054,2]
[352570937,1739173845660,-500.0,0.00012054,2]
[352570938,1739173845669,-500.0,0.00012054,2]
[352570939,1739173845679,-1011.4,0.00012054,2]
[352570940,1739173845688,-500.0,0.00012054,2]
[352570941,1739173845697,-500.0,0.00012054,2]
[352570942,1739173845707,-151.0,0.00012054,2]
[352570943,1739173845716,-151.0,0.00012054,2]
[352570944,1739173845726,-500.0,0.00012054,2]
[352570945,1739173845735,-468.488411,0.00012054,2]
[352570946,1739173845744,-468.488411,0.00012054,2]
[352570948,1739173845753,-500.0,0.00012054,2]
[352570950,1739173845762,-355.99411959,0.00012054,2]
[352570952,1739173845771,-182.863275,0.00012054,2]
[352570953,1739173845780,-182.863275,0.00012054,2]
[352570954,1739173845789,-500.0,0.00012054,2]
[352570955,1739173845799,-151.0,0.00012054,2]
[352570956,1739173845808,-151.0,0.00012054,2]
[352570957,1739173845817,-2327.36,0.00012054,2]
[352570958,1739173845827,-2167.03,0.00012054,2]
[352570959,1739173845837,-500.0,0.00012054,2]
[352570960,1739173845846,-1786.78,0.00012054,2]
[352570961,1739173845856,-500.0,0.00012054,2]
[352570962,1739173845866,-1046.24,0.00012054,2]
[352570963,1739173845875,-737.05,0.00012054,2]
[352570964,1739173845884,-500.0,0.00012054,2]
[352570965,1739173845894,-699.77,0.00012054,2]
[352570966,1739173845903,-151.602746,0.00012054,2]
[352570967,1739173845913,-500.0,0.00012054,2]
[352570968,1739173845922,-889.57,0.00012054,2]
[352570969,1739173845931,-500.0,0.00012054,2]
[352570970,1739173845942,-24674.75,0.00012054,2]
[352570971,1739173845952,-1381.02,0.00012054,2]
[352570972,1739173845961,-3775.41,0.00012054,2]
[352570973,1739173845971,-1106.43,0.00012054,2]
[352570974,1739173845981,-319.110338,0.00012054,2]
[352570975,1739173845991,-615.18,0.00012054,2]
[352570976,1739173846000,-500.0,0.00012054,2]
[352570977,1739173846009,-319.110338,0.00012054,2]
[352570978,1739173846019,-1821.24,0.00012054,2]
[352570980,1739173846118,-586.55,0.00012054,2]
[352570981,1739173846128,-612.13,0.00012054,2]
[352570982,1739173846137,-500.0,0.00012054,2]
[352570983,1739173846147,-5292.78,0.00012054,2]
[352570984,1739173846156,-1628.02,0.00012054,2]
[352570985,1739173846166,-500.0,0.00012054,2]
[352570986,1739173846176,-500.0,0.00012054,2]
[352570988,1739173846186,-500.0,0.00012054,2]
[352570989,1739173846196,-837.58,0.00012054,2]
[352570990,1739173846205,-762.41,0.00012054,2]
[352570991,1739173846215,-1904.32,0.00012054,2]
[352570992,1739173846224,-849.42,0.00012054,2]
[352570993,1739173846234,-925.35,0.00012054,2]
[352570994,1739173846243,-878.8,0.00012054,2]
[352570995,1739173846253,-1541.79,0.00012054,2]
[352570996,1739173846263,-500.0,0.00012054,2]
[352570997,1739173846272,-500.0,0.00012054,2]
[352570998,1739173846282,-700.89,0.00012054,2]
[352570999,1739173846292,-500.0,0.00012054,2]
[352571000,1739173846301,-500.0,0.00012054,2]
[352571001,1739173846311,-161.424521,0.00012054,2]
[352571002,1739173846321,-161.424521,0.00012054,2]
[352571003,1739173846330,-587.98,0.00012054,2]
[352571004,1739173846340,-500.0,0.00012054,2]
[352571005,1739173846349,-1948.67,0.00012054,2]
[352571006,1739173846359,-151.0,0.00012054,2]
[352571007,1739173846368,-886.37,0.00012054,2]
[352571008,1739173846378,-315.574191,0.00012054,2]
[352571009,1739173846387,-500.0,0.00012054,2]
[352571010,1739173846400,-315.574191,0.00012054,2]
[352571011,1739173846410,-500.0,0.00012054,2]
[352571012,1739173846420,-675.282182,0.00012054,2]
[352571013,1739173846429,-11555.29,0.00012054,2]
[352571014,1739173846439,-675.282182,0.00012054,2]
[352571015,1739173846448,-3567.19,0.00012054,2]
[352571016,1739173846457,-1981.93,0.00012054,2]
[352571017,1739173846467,-1014.01,0.00012054,2]
[352571018,1739173846477,-500.0,0.00012054,2]
[352571019,1739173846488,-507.88802541,0.00012095,2]
[352571020,1739173846497,-151.0,0.000121,2]
[352571021,1739173846506,-274.94525434,0.00012106,2]
[352571022,1739173846516,-500.0,0.00012106,2]
[352571023,1739173846526,-500.0,0.00012107,2]
[352571024,1739173846535,-500.0,0.00012107,2]
[352571025,1739173846545,-500.0,0.00012107,2]
[352571026,1739173846555,-500.0,0.00012107,2]
[352571027,1739173846565,-360.60598572,0.00012122,2]
[352571028,1739173846574,-500.0,0.00012122,2]
[352571029,1739173846585,-251.70775413,0.00012122,2]
[352571030,1739173846594,-500.0,0.00012122,2]
[352571031,1739173846604,-500.0,0.00012152,2]
[352571032,1739173846613,-500.0,0.00012169,2]
[352571033,1739173846623,-500.0,0.00012169,2]
[352571034,1739173846633,-500.0,0.00012169,2]
[352571035,1739173846642,-500.0,0.00012191,2]
[352571036,1739173846652,-500.0,0.00012191,2]
[352571037,1739173846662,-500.0,0.00012191,2]
[352571038,1739173846671,-500.0,0.00012191,2]
[352571039,1739173846681,-500.0,0.00012191,2]
[352571040,1739173846693,-566.83,0.00012191,2]
[352571041,1739173846702,-500.0,0.00012191,2]
[352571042,1739173846713,-500.0,0.00012191,2]
[352571043,1739173846723,-598.1,0.00012191,2]
[352571044,1739173846733,-500.0,0.00012191,2]
[352571045,1739173846743,-500.0,0.00012191,2]
[352571046,1739173846752,-636.99,0.00012191,2]
[352571047,1739173846762,-753.01,0.00012191,2]
[352571048,1739173846772,-500.0,0.00012191,2]
[352571049,1739173846783,-500.0,0.00012191,2]
[352571050,1739173846793,-500.0,0.00012191,2]
[352571051,1739173846803,-500.0,0.00012191,2]
[352571052,1739173846812,-500.0,0.00012191,2]
[352571053,1739173846823,-151.0,0.00012191,2]
[352571054,1739173846836,-500.0,0.00012191,2]
[352571055,1739173846845,-151.0,0.00012191,2]
[352571056,1739173846854,-151.0,0.00012191,2]
[352571057,1739173846863,-500.0,0.00012191,2]
[352571058,1739173846873,-582.61,0.00012191,2]
[352571059,1739173846883,-500.0,0.00012191,2]
[352571060,1739173846892,-500.0,0.00012191,2]
[352571061,1739173846901,-1011.4,0.00012191,2]
[352571062,1739173846911,-500.0,0.00012191,2]
[352571063,1739173846921,-151.0,0.00012191,2]
[352571064,1739173846931,-500.0,0.00012191,2]
[352571065,1739173846941,-500.0,0.00012191,2]
[352571066,1739173846951,-500.0,0.00012191,2]
[352571067,1739173846961,-500.0,0.00012191,2]
[352571068,1739173846971,-2327.36,0.00012191,2]
[352571069,1739173846981,-2167.03,0.00012191,2]
[352571070,1739173846990,-500.0,0.00012191,2]
[352571071,1739173847000,-1786.78,0.00012191,2]
[352571072,1739173847009,-500.0,0.00012191,2]
[352571073,1739173847020,-1046.24,0.00012191,2]
[352571074,1739173847029,-737.05,0.00012191,2]
[352571075,1739173847039,-500.0,0.00012191,2]
[352571076,1739173847048,-699.77,0.00012191,2]
[352571077,1739173847058,-500.0,0.00012191,2]
[352571078,1739173847068,-889.57,0.00012191,2]
[352571079,1739173847078,-500.0,0.00012191,2]
[352571080,1739173847088,-24674.75,0.00012191,2]
[352571081,1739173847098,-1381.02,0.00012191,2]
[352571082,1739173847108,-3775.41,0.00012191,2]
[352571083,1739173847118,-1106.43,0.00012191,2]
[352571084,1739173847128,-615.18,0.00012191,2]
[352571085,1739173847138,-500.0,0.00012191,2]
[352571086,1739173847149,-1821.24,0.00012191,2]
[352571087,1739173847160,-586.55,0.00012191,2]
[352571088,1739173847170,-612.13,0.00012191,2]
[352571089,1739173847180,-500.0,0.00012191,2]
[352571090,1739173847191,-5292.78,0.00012191,2]
[352571091,1739173847201,-1628.02,0.00012191,2]
[352571092,1739173847212,-500.0,0.00012191,2]
[352571093,1739173847223,-500.0,0.00012191,2]
[352571094,1739173847233,-532.59101627,0.00012191,2]
[352571095,1739173847242,-837.58,0.00012191,2]
[352571096,1739173847252,-762.41,0.00012191,2]
[352571097,1739173847263,-1904.32,0.00012191,2]
[352571098,1739173847273,-849.42,0.00012191,2]
[352571099,1739173847282,-925.35,0.00012191,2]
[352571100,1739173847292,-878.8,0.00012191,2]
[352571101,1739173847303,-1541.79,0.00012191,2]
[352571102,1739173847313,-500.0,0.00012191,2]